Cogmind - Beta 15 @@@ ROGUE MODE // 2025.08.03 @ 02:10:36 Player: shapeshifter Result: Destroyed by WQ-IUS(j) with Overtuned Pulse Rifle Performance ------------- Evolutions (0) 0 Regions Visited (5) 1000 Robots Destroyed (25) 125 Value Destroyed (670) 670 Prototype IDs (0) 0 Alien Tech Used (0) 0 Bonus (800) 800 TOTAL SCORE: 2595 Bonus ------- Registered with UFD 300 Met Optimus in HQ 500 Cogmind --------- Core Integrity 0/250 Matter 290/300 Energy 142/150 System Corruption 0% Temperature Cool (61) Movement Walking (100) Location -9/Scraptown Parts ------- > --- POWER (1) -------- Micro Fission Core > --- PROPULSION (2) --- Overtuned Titanium Leg Overtuned Titanium Leg > --- UTILITY (2) ------ Large Storage Unit Makeshift Light Armor Plating > --- WEAPON (2) ------- Autogun Chainsword > --- INVENTORY (15) --- Overtuned Titanium Leg Scrap Suit Advanced Weight Redist. System Surveybot 17 Chip Improved Melee Analysis Suite Microactuators Improved Actuator Array Core Shielding Improved Hacking Suite A0-MCA's Component Scanner Tech Extrapolator Mapping Drone Bay (3/3) Chainsword Ripteeth Peak State ------------ > --- POWER ------------ Micro Fission Core > --- PROPULSION ------- Overtuned Titanium Leg Overtuned Titanium Leg > --- UTILITY ---------- Large Storage Unit Makeshift Light Armor Plating > --- WEAPON ----------- Autogun Chainsword > --- INVENTORY -------- VTOL Module Scrap Suit Advanced Weight Redist. System Surveybot 17 Chip Improved Melee Analysis Suite Microactuators Improved Actuator Array Core Shielding Improved Hacking Suite A0-MCA's Component Scanner Tech Extrapolator Mapping Drone Bay Chainsword Ripteeth [Rating: 29] Favorites ----------- Power Ion Engine Engine Ion Engine Power Core Micro Fission Core Propulsion Subdweller Monowheel Treads Light Treads Leg Armored Leg Wheel Subdweller Monowheel Utility Small Storage Unit Device Seismic Detector Storage Small Storage Unit Protection Makeshift Light Armor Plating Weapon Heavy Battle Rifle Energy Gun Small Laser Ballistic Gun Heavy Battle Rifle Launcher Subdweller Shrapnel Launcher Impact Weapon Great Maul Slashing Weapon Chainsword Build | -11 -10 -10 -10 -9 -9 ------- Run | Yrd Mat Min Sub Rec Scr Slots Evolved . | . . . . . . Power . | . . . . . . Propulsion . | . . . . . . Utility . | . . . . . . Weapon . | . . . . . . Parts Attached 40 | 7 3 2 8 1 19 Power 8 | 1 1 . 2 . 4 Engine 6 | 1 1 . 2 . 2 Core 2 | . . . . . 2 Reactor . | . . . . . . Propulsion 13 | 2 . 2 3 1 5 Treads 2 | 2 . . . . . Leg 5 | . . . . . 5 Wheel 6 | . . 2 3 1 . Hover . | . . . . . . Flight . | . . . . . . Utility 5 | 2 . . 1 . 2 Device 1 | 1 . . . . . Storage 2 | 1 . . . . 1 Processor . | . . . . . . Hackware . | . . . . . . Protection 2 | . . . 1 . 1 Artifact . | . . . . . . Weapon 14 | 2 2 . 2 . 8 Energy Gun 6 | 2 2 . . . 2 Energy Cannon . | . . . . . . Ballistic Gun 5 | . . . 1 . 4 Ballistic Cannon . | . . . . . . Launcher 1 | . . . 1 . . Special Weapon . | . . . . . . Impact Weapon 1 | . . . . . 1 Slashing Weapon 1 | . . . . . 1 Piercing Weapon . | . . . . . . Special Melee Weapon . | . . . . . . Unidentified Prototypes . | . . . . . . Parts Lost 3 | . 2 . 1 . . Power . | . . . . . . Propulsion 1 | . . . 1 . . Utility . | . . . . . . Weapon 2 | . 2 . . . . Highest Loss Streak 2 | . 2 . 1 . . To Critical Strikes . | . . . . . . Average Backups 8 | 4 7 7 7 7 9 Power . | . 1 1 1 2 . Propulsion 1 | 3 4 3 1 . . Utility 4 | . 1 1 1 2 6 Weapon 2 | . . 2 2 3 2 Tool/Special . | . . . . . . Unused Backups 34 | . 1 2 4 . 27 Power 1 | . . . 1 . . Propulsion 3 | . . 2 . . 1 Utility 19 | . 1 . 1 . 17 Weapon 9 | . . . 2 . 7 Tool/Special 2 | . . . . . 2 Average Slot Usage (%) 99 | . 99 100 100 100 99 Engine 13 | . 14 14 14 14 13 Treads 4 | . 28 14 . . . Leg 7 | . . . . . 13 Wheel 16 | . . 14 28 28 14 Device 3 | . 14 14 6 . . Storage 14 | . 14 14 14 14 14 Protection 10 | . . . 7 14 14 Energy Gun 10 | . 27 28 12 . 6 Ballistic Gun 9 | . . . 14 14 10 Launcher 4 | . . . 1 14 4 Impact Weapon 1 | . . . . . 2 Slashing Weapon 2 | . . . . . 3 Peak Build Rating 29 | 7 8 8 18 18 29 Average Rating 16 | 4 7 7 14 17 20 On Entrance 9 | . 7 7 8 18 17 Naked Turns . | . . . . . . Heaviest Build 36 | 13 15 13 26 26 36 Greatest Support 40 | 40 40 40 40 40 38 Greatest Overweight (x) 6 | . . . . 1 6 Average Overweight (x) . | . . . . . . Largest Inventory Capacity 15 | 8 8 8 8 8 15 Average Capacity 9 | 7 8 8 8 8 10 Most Carried 15 | 8 8 8 8 8 15 Average Carried 8 | 4 7 7 7 7 10 Final Capacity 15 | 8 8 8 8 8 15 Final Carried 15 | 6 8 7 7 8 15 Class Distribution -------------------- 86% | Mutant 13% | Scavenger-Mutant Dominant Class ---------------- Mutant | -10/Materials Mutant | -10/Mines Scavenger-Mutant | -10/Subcaves Mutant | -9/Recycling Mutant | -9/Scraptown Resources | -11 -10 -10 -10 -9 -9 ----------- Run | Yrd Mat Min Sub Rec Scr Matter Collected 895 | 257 33 . 137 177 291 Remotely . | . . . . . . Salvage Created 762 | 46 271 . 321 54 70 Parts 53 | 6 20 . 20 3 4 Haulers Intercepted . | . . . . . . Recyclers Shooed . | . . . . . . Parts Field Recycled . | . . . . . . Retrieved Matter . | . . . . . . Parts Self-Destructed 18 | . . . 17 . 1 Prevented . | . . . . . . Kills | -11 -10 -10 -10 -9 -9 ------- Run | Yrd Mat Min Sub Rec Scr Combat Hostiles Destroyed 21 | . 9 . 10 1 1 Guns 20 | . 8 . 10 1 1 AOE 1 | . 1 . . . . Classes Destroyed 7 | 1 2 . 3 . 1 Tunneler 2 | 2 . . . . . Turret 2 | . . . 2 . . Swarmer 8 | . 3 . 5 . . Grunt 6 | . 6 . . . . Sentry 2 | . . . 1 1 . Subdweller 4 | . . . 4 . . Scrapper 1 | . . . . . 1 Best Kill Streak 7 | 1 7 . 5 1 1 Combat Bots Only 7 | . 7 . 5 1 1 Max Kills in Single Turn 2 | 1 1 . 2 1 1 Gunslinging . | . . . . . . Exploded 1 | . 1 . . . . Melee . | . . . . . . Uniques/NPCs Destroyed . | . . . . . . Combat | -11 -10 -10 -10 -9 -9 -------- Run | Yrd Mat Min Sub Rec Scr Hostile Shots Fired 180 | . 43 . 84 2 51 Missed 61 | . 9 . 34 1 17 Hits 119 | . 34 . 50 1 34 Melee 1 | . . . . . 1 Projectile 118 | . 34 . 50 1 33 AOE 2 | . . . 2 . . Critical Strikes 1 | . . . . . 1 Damage Taken 1267 | . 364 . 468 15 420 Core 255 | . 32 . 97 . 126 Absorbed by Shields . | . . . . . . Core Remaining (%) 100 | 100 . . . . . Volleys Fired 89 | 6 26 . 31 4 22 Largest 2 | 2 2 . 1 1 1 Hottest 90 | 90 90 . 40 33 23 Shots Fired 114 | 12 45 . 31 4 22 Gun 107 | 12 45 . 24 4 22 Cannon . | . . . . . . Launcher 7 | . . . 7 . . Special . | . . . . . . Kinetic 57 | . . . 31 4 22 Thermal 41 | 6 35 . . . . Explosive . | . . . . . . Electromagnetic 16 | 6 10 . . . . Robot Hit Streak 10 | 2 5 . 7 10 6 Robot Miss Streak 4 | 4 3 . 2 1 3 Penetration Max . | . . . . . . Secondary Targets . | . . . . . . Shots Hit Robots 63 | 4 25 . 16 3 15 Core Hits 40 | 2 16 . 18 1 3 Critical Kills . | . . . . . . Critical Parts Destroyed 1 | . . . 1 . . Critical Strikes 1 | . . . 1 . . Destroy 1 | . . . 1 . . Melee Attacks 1 | . . . . . 1 Impact . | . . . . . . Slashing 1 | . . . . . 1 Piercing . | . . . . . . Sneak Attacks . | . . . . . . Combat Hostiles . | . . . . . . Follow-up Attacks . | . . . . . . Damage Inflicted 1377 | 52 397 . 642 75 211 Guns 1009 | 52 321 . 360 74 202 Cannons . | . . . . . . Explosions 358 | . 76 . 282 . . Melee 9 | . . . . . 9 Ramming 1 | . . . . 1 . Kinetic 918 | . . . 642 74 202 Thermal 323 | 25 298 . . . . Explosive . | . . . . . . Electromagnetic 126 | 27 99 . . . . Impact . | . . . . . . Slashing 9 | . . . . . 9 Piercing . | . . . . . . Highest Corruption 1 | . . . . 1 . Average Corruption 1 | . . . . 1 . Corruption Purged . | . . . . . . Corruption Blocked . | . . . . . . Effects 1 | . . . . 1 . Message Errors 1 | . . . . 1 . Overload Shots . | . . . . . . Overflow Damage 13 | . . . 13 . . Projectiles . | . . . . . . Explosions 13 | . . . 13 . . Melee . | . . . . . . Knockbacks . | . . . . . . Impact . | . . . . . . Kinetic . | . . . . . . Secondary . | . . . . . . Self-Inflicted Damage . | . . . . . . Shots . | . . . . . . Rammed 1 | . . . . 1 . Targets Rammed 1 | . . . . 1 . Kicked . | . . . . . . Crushed . | . . . . . . Highest Temperature 212 | 82 212 . 15 13 55 Average Temperature 58 | 34 89 . 8 7 20 Received Heat Transfer 526 | . 147 . 213 9 157 Siege Activations . | . . . . . . Martial Activations . | . . . . . . Shielding Activations . | . . . . . . Robots Disrupted . | . . . . . . Combat Hostiles . | . . . . . . Robots Corrupted . | . . . . . . Combat Hostiles . | . . . . . . Parts Fried . | . . . . . . Impact Corruptions . | . . . . . . Robots Melted . | . . . . . . Combat Hostiles . | . . . . . . Parts Melted 2 | . 2 . . . . Heat Transferred 783 | 74 709 . . . . Parts Sabotaged . | . . . . . . Parts Stolen . | . . . . . . Parts Stripped . | . . . . . . Power Chain Reactions 1 | . 1 . . . . Alert | -11 -10 -10 -10 -9 -9 ------- Run | Yrd Mat Min Sub Rec Scr Maximum Alert Level . | . . . . . . Low Security (%) 100 | 100 100 100 . 100 . Level 1 . | . . . . . . Level 2 . | . . . . . . Level 3 . | . . . . . . Level 4 . | . . . . . . Level 5 . | . . . . . . High Security . | . . . . . . Max Security . | . . . . . . Peak Influence 142 | 5 140 . . 142 . Initial 142 | . . . . 142 . Average 49 | . 57 . . 76 . Influence Increases 635 | 10 210 . 370 45 . Destroy 0b10 Robot/C 360 | . 180 . 160 20 . Destroy 0b10 Robot/NC 10 | 10 . . . . . Destroy Leader 30 | . 30 . . . . Successful Hack 25 | . . . . 25 . Lose Combat Pursuer 210 | . . . 210 . . Influence Decreases 635 | 10 210 . 72 343 . Entered New Map 156 | . . . . 156 . Time Decay 459 | 10 190 . 72 187 . Lost Part 20 | . 20 . . . . Squads Dispatched 1 | . 1 . . . . Investigation . | . . . . . . Extermination . | . . . . . . Reinforcement 1 | . 1 . . . . Assault . | . . . . . . Garrison . | . . . . . . Intercept . | . . . . . . Searches Triggered . | . . . . . . Construction Impeded . | . . . . . . Haulers Reinforced . | . . . . . . Active Scanning Responses . | . . . . . . Cargo Convoy Interrupts . | . . . . . . Stealth | -11 -10 -10 -10 -9 -9 --------- Run | Yrd Mat Min Sub Rec Scr Distress Signals 3 | . 3 . . . . Communications Jammed . | . . . . . . Distress Signals . | . . . . . . Times Spotted 49 | . 12 . 14 1 22 Peak Tracking Total 11 | . 7 . 5 1 11 Tactical Retreats 3 | . . . 2 . 1 Traps | -11 -10 -10 -10 -9 -9 ------- Run | Yrd Mat Min Sub Rec Scr Traps Triggered . | . . . . . . Indirectly . | . . . . . . Trap Hack Attempts . | . . . . . . Triggered . | . . . . . . Disarmed . | . . . . . . Reprogrammed . | . . . . . . Reused . | . . . . . . Traps Extracted . | . . . . . . Installed . | . . . . . . Triggered . | . . . . . . Machines | -11 -10 -10 -10 -9 -9 ---------- Run | Yrd Mat Min Sub Rec Scr Machines Disabled 4 | . . . 4 . . Max in Single Turn 4 | . . . 4 . . Machines Repaired . | . . . . . . Machines Dismantled . | . . . . . . Machines Sabotaged . | . . . . . . Overloaded Fab Kills . | . . . . . . Hacking | -11 -10 -10 -10 -9 -9 --------- Run | Yrd Mat Min Sub Rec Scr Machines Accessed 16 | . 1 . . 9 6 Terminals 6 | . 1 . . 5 . Fabricators . | . . . . . . Repair Stations . | . . . . . . Recycling Units 4 | . . . . 4 . Scanalyzers . | . . . . . . Garrison Access . | . . . . . . Total Hacks 64 | . 3 . . 22 39 Successful 52 | . 1 . . 12 39 Failed 12 | . 2 . . 10 . Catastrophic 3 | . 1 . . 2 . Database Lockouts . | . . . . . . Manual 15 | . 3 . . 12 . Terminals 19 | . 3 . . 16 . Fabricators . | . . . . . . Repair Stations . | . . . . . . Recycling Units 6 | . . . . 6 . Scanalyzers . | . . . . . . Garrison Access . | . . . . . . Terminal Hacks 45 | . . . . 6 39 Record 36 | . . . . . 36 Part Schematic 1 | . . . . 1 . Robot Analysis 3 | . . . . . 3 Alert Level 1 | . . . . 1 . Zone Layout 4 | . . . . 4 . Fabricator Hacks . | . . . . . . Repair Station Hacks . | . . . . . . Recycling Unit Hacks 4 | . . . . 4 . Report Inventory 4 | . . . . 4 . Scanalyzer . | . . . . . . Garrison Access Hacks . | . . . . . . Unauthorized Hacks 3 | . 1 . . 2 . Terminals 3 | . 1 . . 2 . Botnet 3 | . 1 . . 2 . Fabricators . | . . . . . . Repair Stations . | . . . . . . Recycling Units . | . . . . . . Scanalyzers . | . . . . . . Garrison Access . | . . . . . . Data Cores Recovered . | . . . . . . Used . | . . . . . . Hacking Detections 7 | . 1 . . 6 . Full Trace Events 7 | . 1 . . 6 . Feedback Events 1 | . . . . 1 . Corruption 1 | . . . . 1 . Feedback Blocked . | . . . . . . Robot Schematics Acquired . | . . . . . . Robots Built . | . . . . . . Authchips . | . . . . . . Time . | . . . . . . Total Robot Build Rating . | . . . . . . Part Schematics Acquired 1 | . . . . 1 . Parts Built . | . . . . . . Authchips . | . . . . . . Time . | . . . . . . Total Part Build Rating . | . . . . . . Parts Repaired . | . . . . . . Time . | . . . . . . Parts Recycled . | . . . . . . Recycled Matter . | . . . . . . Retrieved Matter . | . . . . . . Retrieved Components . | . . . . . . Parts Scanalyzed . | . . . . . . Part Schematics Acquired . | . . . . . . Parts Damaged . | . . . . . . Bothacking | -11 -10 -10 -10 -9 -9 ------------ Run | Yrd Mat Min Sub Rec Scr Used RIF Installer . | . . . . . . Robots Hacked . | . . . . . . Non-combat . | . . . . . . Combat . | . . . . . . Robot Hacks Applied . | . . . . . . Relay Couplers Released . | . . . . . . Fabnet Peak Effective % . | . . . . . . Robots Rewired . | . . . . . . Allies Hacked . | . . . . . . Hacks Repelled . | . . . . . . Allies | -11 -10 -10 -10 -9 -9 -------- Run | Yrd Mat Min Sub Rec Scr Total Allies . | . . . . . . Largest Group . | . . . . . . Highest-Rated Group . | . . . . . . Highest-Rated Ally . | . . . . . . Total Orders . | . . . . . . Ally Attacks . | . . . . . . Total Damage . | . . . . . . Kills . | . . . . . . Allies Corrupted . | . . . . . . Allies Melted 3 | . . . . . 3 Intel | -11 -10 -10 -10 -9 -9 ------- Run | Yrd Mat Min Sub Rec Scr Active Infowar (turns) 884 | 17 462 149 256 . . Seismic 884 | 17 462 149 256 . . Robot Analysis Total 3 | . . . . . 3 Derelict Logs Recovered 6 | . . . 1 . 5 Drone Launches . | . . . . . . Drone Recoveries . | . . . . . . Exploration | -11 -10 -10 -10 -9 -9 ------------- Run | Yrd Mat Min Sub Rec Scr Turns Passed 3878 | 155 462 149 549 395 2168 Spaces Moved 3023 | 85 234 125 411 353 1815 Core 17 | 16 . . . . 1 Treads 337 | 69 234 34 . . . Legs 779 | . . . . . 779 Wheels 1890 | . . 91 411 353 1035 Hover . | . . . . . . Flight . | . . . . . . Fastest Speed 50 | 50 160 90 90 105 100 Average Speed 115 | 139 160 109 105 108 112 Slowest Speed 350 | 160 160 160 110 120 350 Overloaded Moves . | . . . . . . Propulsion Burnouts . | . . . . . . Robots Hopped . | . . . . . . Potential Cave-ins . | . . . . . . Cave-ins Triggered . | . . . . . . Exploration Rate (%) 42 | 6 31 26 27 74 91 Regions Visited 5 Branch Regions 4 Pre-discovered Areas 2 | . . . . . 2 Known Exits Taken . | . . . . . . Unknown Exits Taken 5 | 1 1 1 1 1 . Scrap Searched 11 | . . 1 3 . 7 Spaces Dug . | . . . . . . Terrain Destroyed 49 | . . . 49 . . Melee . | . . . . . . Projectile 1 | . . . 1 . . AOE 48 | . . . 48 . . Terrain Rammed . | . . . . . . Walls Destroyed . | . . . . . . Machines Disabled . | . . . . . . Actions | -11 -10 -10 -10 -9 -9 --------- Run | Yrd Mat Min Sub Rec Scr Total 3316 | 110 277 137 498 361 1933 Wait 51 | . 7 8 26 2 8 Move 3018 | 84 233 124 410 352 1815 Hop . | . . . . . . Pick Up 63 | 13 6 1 12 . 31 Fast Attach 9 | . . . . 1 8 Attach 16 | 7 2 . 2 . 5 Detach 1 | . . . . 1 . Swap 16 | . 1 2 6 . 7 Drop 51 | . 2 2 11 . 36 Fire 89 | 6 26 . 31 4 22 Melee 1 | . . . . . 1 Ram 1 | . . . . 1 . Kick . | . . . . . . Crush . | . . . . . . Escape Stasis . | . . . . . . Rewire . | . . . . . . Trap . | . . . . . . Miscellaneous . | . . . . . . Route ------- -11/Scrapyard -10/Materials -10/Mines -10/Subcaves -9/Recycling (discovered 2 exits: [*Fac] / *Scr) -9/Scraptown (discovered 2 exits: *Fac x2) History --------- Turn | Location | Event 5 | -11/Scrapyard | Discovered new exit (range 14) 156 | -11/Scrapyard | Entered Materials 306 | -10/Materials | Build established: Mutant 325 | -10/Materials | Destroyed 7 combat bots 418 | -10/Materials | Discovered new exit (range 9) 618 | -10/Materials | Entered Mines 674 | -10/Mines | Assembled infested the area 744 | -10/Mines | A weapon hastily lodged in a ceiling crevice suddenly fell to the ground 762 | -10/Mines | Discovered new exit (range 6) 767 | -10/Mines | Entered Subcaves 768 | -10/Subcaves | Approached by a straggling Scientist 774 | -10/Subcaves | Learned Materials machine intel 1054 | -10/Subcaves | Shifting Twisted Machinery released Sub. Beam Cannon 1098 | -10/Subcaves | Shifting Twisted Machinery released Sub. Power Source 1147 | -10/Subcaves | Build established: Scavenger-Mutant 1181 | -10/Subcaves | A swath of the cavern ceiling suddenly collapsed 1181 | -10/Subcaves | A swath of the cavern ceiling suddenly collapsed 1230 | -10/Subcaves | Discovered new exit (range 14) 1273 | -10/Subcaves | Core integrity fell below 50% 1316 | -10/Subcaves | Entered Recycling 1455 | -9/Recycling | Discovered new exit (range 6) 1563 | -9/Recycling | Build established: Mutant 1687 | -9/Recycling | Scanned before Scraplab entrance 1701 | -9/Recycling | Entered Scraplab 1710 | -9/Recycling | Discovered new exit (range 2) 1711 | -9/Recycling | Entered Scraptown 1711 | -9/Scraptown | System corruption cleaned by C-Scrubber 1769 | -9/Scraptown | Visited Comm Corps 1823 | -9/Scraptown | Visited Symbiants 1867 | -9/Scraptown | Visited CPS Storage 1884 | -9/Scraptown | Visited The Evicted 1906 | -9/Scraptown | Visited Cyclists 1921 | -9/Scraptown | Visited UFD Registry 1921 | -9/Scraptown | Registered with UFD as "Cogforce" 1938 | -9/Scraptown | Visited Junk Repository 2206 | -9/Scraptown | Scanned Subdweller tech in exchange for log data 2208 | -9/Scraptown | Learned Research terminal intel 2209 | -9/Scraptown | Learned location of Quarantine (-3) 2210 | -9/Scraptown | Learned 8 Research zone layouts 2211 | -9/Scraptown | Learned location of Armory (-3) 2212 | -9/Scraptown | Learned Research machine intel 2224 | -9/Scraptown | Discovered new exit (range 11) 2644 | -9/Scraptown | Entered Cyclist Reading Room 2720 | -9/Scraptown | Visited Cave Peace 2779 | -9/Scraptown | Visited Scrapoid Pod Storage 2802 | -9/Scraptown | Visited Junk Repository 2865 | -9/Scraptown | Received an X-ray algorithm 2872 | -9/Scraptown | Visited A0-MCA Data Center 2880 | -9/Scraptown | Given a B+ rating by A0-MCA 2888 | -9/Scraptown | Found A0-MCA's Component Scanner 3055 | -9/Scraptown | Visited DA-N13 Charitable Foundation 3072 | -9/Scraptown | Visited Derelict Rescue Squad 3079 | -9/Scraptown | Found DRS Beacon 3150 | -9/Scraptown | Visited Cartography Club 3203 | -9/Scraptown | Found Surveybot 17 Chip 3295 | -9/Scraptown | Visited Supply Room 3347 | -9/Scraptown | Visited Curators Association 3366 | -9/Scraptown | Visited Analyses Database 3461 | -9/Scraptown | Found Scrap Suit 3566 | -9/Scraptown | Found DCF Scrap (28 items) 3634 | -9/Scraptown | Met Optimus 3634 | -9/Scraptown | Accepted into 0bPrime 3690 | -9/Scraptown | Civil war broke out across Scraptown 3747 | -9/Scraptown | Lost 7 allies 3764 | -9/Scraptown | Identified exit to Factory 3802 | -9/Scraptown | Optimus destroyed in the chaos of civil war 3875 | -9/Scraptown | Core integrity fell below 20% 3879 | -9/Scraptown | Destroyed by WQ-IUS(j) with Overtuned Pulse Rifle Last Messages --------------- 03829_ 9Z-HDP(E): "It's not too late to join us in victory!" 03830_ Acquired 8 matter. 03833_ Penetrated by Bolt. 03843_ Acquired 24 matter. 03845_ Acquired 4 matter. 03846_ Penetrated by Bolt. 03853_ 0J-DL6(b): "I knew I should've stayed in 0b1." 03853_ Acquired 4 matter. 03857_ 9Z-HDP(E) suffers critical hit (Burn). 03857_ 9Z-HDP(E) destroyed. 03862_ Bolt penetrates Machine. 03864_ Ovr. Titanium Leg suddenly begins malfunctioning. 03864_ Penetrated by Bolt. 03872_ Bolt penetrates Machine. 03876_ Bolt penetrates Wall. 03878_ Critical hit (Burn: +50). 03879_ Bolt penetrates 8D-48K(j). Map ----- +----------------------------------------------------+ | | | | | | | | | ?????????????????????????????????????????????????? | | ?????????????????????????????????????????????????? | | ?????????????????????????????????????????????????? | | ?????????????????????????????????????????????????? | | ?????????????????????????????????????????????????? | | ?????????????????????????????????????????????????? | | ?????????????????????????????????????????????????? | | ?????????????????????????????????????????????????? | | ?????????????????????????????????????????????????? | | ?????????????????????????????????????????????????? | | ?????????????????????????????????????????????????? | | ?????????????????????????????????????????????????? | | ???????????????????????##????????????????????????? | | ?????###############??##[##??????????????????????? | | ?"???#"""##""|##"""#??#;%=##??????